{"text_format":"3","workbook":"xlsx","n_sheets":1,"sheets":["Sheet1"],"read":"whole","date_system":"1900"}

{"sheet":"Sheet1","index":0,"n_rows":113,"n_cols":6,"rows_kept":113,"merged":[[1,5,1,6],[3,0,3,5]]}
["Fill in the yellow fields only"]
["FORMAL QUOTE NO: FQ 16/2026",{"$nulls":3},"SUPPLIER \nNAME"]
[]
["SUPPLY AND DELIVERY OF EDUCATIONAL TOYS AND BOARD GAMES (ONCE OFF) FOR KANNALAND MUNICIPALITY"]
[]
["ITEM NO.","DESCRIPTION","SIZE","QUANTITY","RATE","AMOUNT (EXCL. VAT)"]
[1,"Put wooden together of children's picture","48 pc",4,null,{"$f":"D7*E7","v":0}]
[2,"IQ Link ","15 pc",4,null,{"$f":"D8*E8","v":0}]
[3,"In the jungle","36 pc",4,null,0]
[4,"South Africa ","18 pc",4,null,0]
[5,"Hygiene habits are fun","25 pc",4,null,0]
[6,"Alphabet Puzzle'","27 pc",4,null,0]
[7,"Peg Puzzle My Body - Girl","7 pc",4,null,0]
[{"$f":"7+1","v":8},"Peg Puzzle My Body - Boy ","7 pc ",4,null,0]
[{"$f":"8+1","v":9},"Shapes Puzzle'","9 pc",4,null,0]
[10,"My Body floor puzzle ","24 pc ",4,null,0]
[11,"Magnetic Matching Picture Game ","127 pc",4,null,0]
[12,"Train Set Accesory - Traffic Signs ","7 pc",4,null,0]
[13,"Shapes  & Colours Domino ","29 pc",4,null,0]
[14,"Peg designs ","122 pc ",4,null,0]
[15,"Tell the time","29 pc",4,null,0]
[16,"Edunation- Educational Products & Toys","4 pc",4,null,0]
[17,"Peg designs ","30 pc",4,null,0]
[18,"Fun with beads","85 pc",4,null,0]
[19,"Link 'N Spell","63 pc",4,null,0]
[20,"Balancing Game - Elephant","26 pc",4,null,0]
[21,"Lacing Blocks ","13 pc",4,null,0]
[22,"Lacing Wild Animals ","20 pc",4,null,0]
[23,"Lacing Blocks ","13 pc ",4,null,0]
[24,"Clam Pool","1 pc",2,null,0]
[25,"Giant Game: Snakes & Ladders","6 pc",4,null,0]
[26,"Roller Coaster - Early Education Toy Beads ","1 pc ",4,null,0]
[27,"Little Learners Pack ","163 pc",4,null,0]
[28,"Wooden Abacus","2 pc",4,null,0]
[29,"50pc Colourful Building Blocks ","52 pc ",4,null,0]
[30,"Dollsworld - early moment ","1 pc ",2,null,0]
[31,"Farm set'","19 pc",4,null,0]
[32,"Farm set (in clear container)'","16 pc",4,null,0]
[33,"Non-Toxic Jumbo Crayon ","12 pc",10,null,0]
[34,"Dala Dough","1  pc ",10,null,0]
[35,"Xhosa Fundis Alphabet Cards","26 pc",8,null,0]
[36,"Addition 0-12 Flash Cards","56 pc",8,null,0]
[37,"Flashcards Numbers","36 pc",8,null,0]
[38,"Profession Flash Cards","36 pc",8,null,0]
[39,"Animal Flash Cards","36 pc",8,null,0]
[40,"123 Flash Cards","36 pc",8,null,0]
[41,"Alphabet Flash Card","52 pc",8,null,0]
[42,"All About Phonics Flashcards","40 pc",8,null,0]
[43,"Flash Cards Alphabet","36 pc",8,null,0]
[44,"Flash Cards Colours","36 pc",8,null,0]
[45,"Flash Cards Baby Animals","36 pc",8,null,0]
[46,"Flash Cards Shapes","36 pc",8,null,0]
[47,"Cash register","19 pc",2,null,0]
[48,"Monkey Drum","1pc",4,null,0]
[49,"Plastic Tambourine","1pc",4,null,0]
[50,"Musical Instrumental Set","7 pc",4,null,0]
[51,"Hand Puppets Animals","6 pc",4,null,0]
[52,"Finger Puppets Animals","5 pc",4,null,0]
[53,"Emotion beanless bag set","4 pc",1,null,0]
[54,"Jump String for Health","1 pc ",4,null,0]
[55,"Fun with Beads","78pc",4,null,0]
[56,"House Building Engineering","120pc",4,null,0]
[57,"Geometric Stacker","26 pc",4,null,0]
[58,"Hoola Hoops","3 pc ",4,null,0]
[59,"In the Jungle - A set of 4 puzzles","36 pc",4,null,0]
[60," 911 Ambulance/Police Van","1pc",4,null,0]
[61,"Invicta - Education","4pc",4,null,0]
[62,"Dough Cutting Board","1pc",4,null,0]
[63,"Wooden washing machine","1pc",4,null,0]
[64,"Wooden stove","1pc",4,null,0]
[65,"Fire Rescue Truck","1pc",4,null,0]
[66,"Combat Arms","1pc",4,null,{"$f":"D72*E72","v":0}]
[67,"Doctor Costume Set","6 pc",4,null,0]
[68,"Cotton Reels & Laces","26pc",4,null,0]
[69,"The Three Section Train Blocks","14pc",4,null,0]
[70,"Funny Blocks","60pc",4,null,0]
[71,"Egg shakers","6pc",4,null,0]
[72,"Frying Pan","16pc",4,null,0]
[73,"Food set with basket","7pc",4,null,0]
[74,"Activity  Doh ( Cookie cutters with rolling pin)","12pc",4,null,0]
[75,"Happy Food","7pc",4,null,0]
[76,"Syringes","4pc",4,null,0]
[77,"Measuring Cup 6pcs","6pc",4,null,0]
[78,"Sweet Dessert","15pc",4,null,0]
[79,"Recycle & Waste Sorting Game","27pc",4,null,0]
[80,"Kitchen Play Set","9pc",4,null,0]
[81,"Kitchenware ","25pc",4,null,0]
[82,"Ironing Board","1pc",4,null,0]
[83,"Scooter","1pc",4,null,0]
[84,"Poster: Days of the Week","1pc",8,null,0]
[85,"Poster: Profession","1pc",8,null,0]
[86,"Poster: Safety","1pc",8,null,0]
[87,"Poster: Months & Seasons, Afrikaans and English","1pc",8,null,0]
[88,"Poster: Transport","1pc",8,null,0]
[89,"Poster: Vegetables","1pc",8,null,0]
[90,"Poster: Imifuno","1pc",8,null,0]
[91,"African Sunshine Phonics Stage 1 - Set of 31 Flash Cards","31pc",4,null,0]
[92,"World Map Non-Slip Carpet - 200 x 200cm",1,2,null,0]
[93,"Classroom & Household Mobile Storage Organiser - 10 Bins",1,3,null,0]
[94,"12 Bin Storage Organiser with Steel Frame",1,2,null,0]
[null,"SUMMARY OF PRICING SCHEDULE"]
[]
[null,"SUB-TOTAL",{"$nulls":3},{"$f":"SUM(F2:F100)","v":{"v":0,"d":"R0.00"}}]
[]
[null,"15% VAT",{"$nulls":3},{"$f":"ROUND(F103*0.15,2)","v":{"v":0,"d":"R0.00"}}]
[]
[null,"TENDER SUM CARRIED FORWARD TO FORM OF OFFER",{"$nulls":3},{"$f":"ROUND(SUM(F103:F105),2)","v":{"v":0,"d":"R0.00"}}]
[]
[]
[]
[null,"SIGNATURE OF SUPPLIER:","….............................................."]
[]
[null,"DATE:","…............................................"]